Cogmind - Beta 12 @@@ ROGUE MODE // 2023.04.10 @ 21:16:56 Player: Hekatonkheires Result: Destroyed by 1C-UTU with 1C-UTU's Sword "Lootmaker" Performance ------------- Evolutions (1) 500 Regions Visited (6) 1200 Robots Destroyed (54) 270 Value Destroyed (1434) 1434 Prototype IDs (25) 500 Alien Tech Used (0) 0 Bonus (320) 320 TOTAL SCORE: 4224 Bonus ------- High Alert Combat Kills 20 Aligned with FarCom 300 Cogmind --------- Core Integrity 0/400 Matter 300/300 Energy 90/100 System Corruption 4% Temperature Cool (0) Movement Core (250) Ox4 Location -8/Mines Parts ------- > --- POWER (1) -------- (None) > --- PROPULSION (3) --- (None) > --- UTILITY (3) ------ Medium Storage Unit > --- WEAPON (2) ------- Longsword +1 > --- INVENTORY (10) --- Light Nuclear Core Armored Wheel Large Matter Pod (150) Signal Interpreter Plasma Cannon Heavy Assault Rifle Gauss Rifle Heavy Battle Rifle Mini Grenade Launcher Peak State ------------ > --- POWER ------------ Improved Ion Engine > --- PROPULSION ------- Light Treads Light Treads Armored Wheel > --- UTILITY ---------- Cooling System Medium Storage Unit Light Armor Plating > --- WEAPON ----------- Gauss Rifle Gauss Rifle > --- INVENTORY -------- Improved Ion Engine Light Nuclear Core Armored Wheel Signal Interpreter Hardened Light Armor Plating Plasma Cannon Heavy Assault Rifle Heavy Battle Rifle Mini Grenade Launcher Longsword +1 [Rating: 21] Favorites ----------- Power Improved Ion Engine Engine Improved Ion Engine Power Core Light Nuclear Core Propulsion Light Treads Treads Light Treads Wheel Armored Wheel Utility Medium Storage Unit Device Cooling System Storage Medium Storage Unit Processor Targeting Computer Protection Light Armor Plating Weapon Gauss Rifle Energy Gun Heavy EM Pulse Gun Ballistic Gun Gauss Rifle Slashing Weapon Longsword +1 Build | -11 -10 -10 -9 -9 -9 -8 ------- Run | Jun Mat Min Mat Min Exi Min Slots Evolved 2 | . . . 2 . . . Power . | . . . . . . . Propulsion 1 | . . . 1 . . . Utility 1 | . . . 1 . . . Weapon . | . . . . . . . Parts Attached 43 | 6 5 5 18 5 . 4 Power 4 | 1 . 1 1 1 . . Engine 3 | 1 . . 1 1 . . Core 1 | . . 1 . . . . Reactor . | . . . . . . . Propulsion 10 | 2 . . 7 1 . . Treads 8 | 2 . . 5 1 . . Leg . | . . . . . . . Wheel 2 | . . . 2 . . . Hover . | . . . . . . . Flight . | . . . . . . . Utility 11 | 1 1 1 6 1 . 1 Device 2 | . . . 2 . . . Storage 2 | 1 1 . . . . . Processor 1 | . . 1 . . . . Hackware . | . . . . . . . Protection 6 | . . . 4 1 . 1 Artifact . | . . . . . . . Weapon 18 | 2 4 3 4 2 . 3 Energy Gun 5 | . 2 . 3 . . . Energy Cannon . | . . . . . . . Ballistic Gun 12 | 2 2 3 1 2 . 2 Ballistic Cannon . | . . . . . . . Launcher . | . . . . . . . Special Weapon . | . . . . . . . Impact Weapon . | . . . . . . . Slashing Weapon 1 | . . . . . . 1 Piercing Weapon . | . . . . . . . Special Melee Weapon . | . . . . . . . Unidentified Prototypes 2 | . . . 2 . . . Parts Lost 11 | . . . 2 1 . 8 Power 1 | . . . . . . 1 Propulsion 3 | . . . . . . 3 Utility 6 | . . . 2 1 . 3 Weapon 1 | . . . . . . 1 Highest Loss Streak 8 | . . . 2 1 . 8 To Critical Strikes . | . . . . . . . Average Slot Usage (%) 97 | . 89 94 99 100 100 94 Engine 10 | . 14 13 8 11 11 11 Core 1 | . . . 2 . . . Treads 23 | . 28 28 22 22 22 22 Wheel 7 | . . . 11 11 11 11 Device 5 | . . . 3 11 11 5 Storage 12 | . 17 14 11 11 11 11 Processor 4 | . . 8 9 . . . Protection 7 | . . . 8 11 11 11 Energy Gun 6 | . 17 8 3 5 . . Ballistic Gun 17 | . 10 19 18 16 22 22 Naked Turns . | . . . . . . . Heaviest Build 30 | 14 26 22 29 30 30 30 Greatest Support 40 | 40 40 40 40 40 12 40 Greatest Overweight (x) 2 | . . . 2 2 2 . Average Overweight (x) . | . . . . . 2 . Largest Inventory Capacity 10 | 8 10 10 10 10 10 10 Average Capacity 9 | 7 9 10 10 10 10 10 Most Carried 10 | 6 10 10 10 10 10 10 Average Carried 9 | 2 7 9 9 9 9 8 Final Capacity 10 | 8 10 10 10 10 10 10 Final Carried 10 | 6 10 10 10 10 10 9 Class Distribution -------------------- 52% | Scavenger-Mutant 47% | Mutant Dominant Class ---------------- Mutant | -10/Materials Mutant | -10/Mines Scavenger-Mutant | -9/Materials Scavenger-Mutant | -9/Mines Scavenger-Mutant | -9/Exiles Scavenger-Mutant | -8/Mines Resources | -11 -10 -10 -9 -9 -9 -8 ----------- Run | Jun Mat Min Mat Min Exi Min Matter Collected 1301 | 222 118 71 570 194 18 108 Remotely . | . . . . . . . Salvage Created 2059 | . 495 85 917 461 . 101 Parts 126 | . 31 4 65 23 . 3 Haulers Intercepted 4 | . 1 . 3 . . . Recyclers Shooed . | . . . . . . . Parts Field Recycled . | . . . . . . . Retrieved Matter . | . . . . . . . Parts Self-Destructed . | . . . . . . . Prevented . | . . . . . . . Kills | -11 -10 -10 -9 -9 -9 -8 ------- Run | Jun Mat Min Mat Min Exi Min Combat Hostiles Destroyed 37 | . 9 2 15 9 . 2 Guns 35 | . 7 2 15 9 . 2 AOE 1 | . 1 . . . . . Classes Destroyed 10 | . 6 . 4 . . . Worker 3 | . 1 . 1 1 . . Builder 2 | . . . 2 . . . Hauler 4 | . 1 . 3 . . . Recycler 1 | . 1 . . . . . Operator 1 | . . . 1 . . . Watcher 6 | . 2 . 4 . . . Swarmer 6 | . 3 . 3 . . . Grunt 22 | . 6 2 5 7 . 2 Brawler 1 | . . . 1 . . . Sentry 8 | . . . 6 2 . . Best Kill Streak 8 | . 6 2 8 5 . 2 Combat Bots Only 5 | . 3 2 4 5 . 2 Max Kills in Single Turn 3 | . 3 1 2 2 . 1 Gunslinging . | . . . . . . . Exploded 1 | . 1 . . . . . Melee . | . . . . . . . Uniques/NPCs Destroyed . | . . . . . . . Combat | -11 -10 -10 -9 -9 -9 -8 -------- Run | Jun Mat Min Mat Min Exi Min Damage Taken 2346 | . 230 11 783 196 . 1126 Core 420 | . 7 11 96 . . 306 Absorbed by Shields . | . . . . . . . Core Remaining (%) 96 | 100 . 92 . . . . Volleys Fired 132 | . 28 3 74 19 . 8 Largest 2 | . 2 2 2 2 . 2 Hottest 90 | . 90 56 90 90 . 56 Shots Fired 249 | . 46 6 142 38 1 16 Gun 249 | . 46 6 142 38 1 16 Cannon . | . . . . . . . Launcher . | . . . . . . . Special . | . . . . . . . Kinetic 186 | . 10 6 121 32 1 16 Thermal 17 | . . . 17 . . . Explosive . | . . . . . . . Electromagnetic 46 | . 36 . 4 6 . . Robot Hit Streak 11 | . 7 4 11 3 . 7 Robot Miss Streak 6 | . 2 1 6 5 . 1 Penetration Max 1 | . . . . 1 . . Secondary Targets 2 | . . . 1 1 . . Max Gunslinging Chain 1 | . . . 1 1 . . Shots Hit Robots 169 | . 30 5 96 21 . 17 Core Hits 75 | . 15 4 36 13 . 7 Critical Kills 1 | . . . 1 . . . Critical Parts Destroyed 1 | . 1 . . . . . Critical Strikes 5 | . 2 . 3 . . . Burn 2 | . . . 2 . . . Destroy 2 | . 1 . 1 . . . Corrupt 1 | . 1 . . . . . Melee Attacks 4 | . . . . . . 4 Impact . | . . . . . . . Slashing 4 | . . . . . . 4 Piercing . | . . . . . . . Sneak Attacks . | . . . . . . . Combat Hostiles . | . . . . . . . Follow-up Attacks . | . . . . . . . Damage Inflicted 3390 | . 667 94 1785 454 . 390 Guns 3108 | . 563 94 1785 413 . 253 Cannons . | . . . . . . . Explosions 145 | . 104 . . 41 . . Melee 137 | . . . . . . 137 Ramming . | . . . . . . . Kinetic 2355 | . 76 94 1578 354 . 253 Thermal 334 | . 104 . 189 41 . . Explosive . | . . . . . . . Electromagnetic 564 | . 487 . 18 59 . . Impact . | . . . . . . . Slashing 137 | . . . . . . 137 Piercing . | . . . . . . . Highest Corruption 4 | . . . 4 4 4 4 Average Corruption 4 | . . . 4 4 4 4 Corruption Purged . | . . . . . . . Corruption Blocked . | . . . . . . . Effects 29 | . . . 4 17 6 2 Message Errors 7 | . . . 1 5 1 . Matter Fused 8 | . . . . 3 4 1 Heat Flow Errors 5 | . . . . 4 . 1 Energy Discharges 2 | . . . . 2 . . Data Loss (minor) 2 | . . . . 2 . . Misfires 1 | . . . . . 1 . Alerts 1 | . . . . 1 . . Weapon Failures 3 | . . . 3 . . . Overload Shots . | . . . . . . . Overflow Damage 10 | . . . . . . 10 Projectiles . | . . . . . . . Explosions . | . . . . . . . Melee 10 | . . . . . . 10 Knockbacks . | . . . . . . . Impact . | . . . . . . . Kinetic . | . . . . . . . Secondary . | . . . . . . . Self-Inflicted Damage . | . . . . . . . Shots . | . . . . . . . Rammed 1 | . . . 1 . . . Targets Rammed 1 | . . . 1 . . . Kicked . | . . . . . . . Crushed . | . . . . . . . Highest Temperature 297 | . 277 4 297 236 . 146 Average Temperature 80 | . 93 3 68 110 . 49 Received Heat Transfer 768 | . 93 6 357 132 . 180 Effects 2 | . 2 . . . . . Energy Bleed 1 | . 1 . . . . . Interference 1 | . 1 . . . . . Siege Activations . | . . . . . . . Robots Corrupted 1 | . 1 . . . . . Combat Hostiles 1 | . 1 . . . . . Parts Fried 4 | . 4 . . . . . Impact Corruptions . | . . . . . . . Robots Melted . | . . . . . . . Combat Hostiles . | . . . . . . . Parts Melted . | . . . . . . . Heat Transferred 755 | . 150 . 555 50 . . Parts Sabotaged . | . . . . . . . Parts Stolen . | . . . . . . . Parts Stripped . | . . . . . . . Power Chain Reactions 2 | . 1 . . 1 . . Missiles Intercepted . | . . . . . . . Alert | -11 -10 -10 -9 -9 -9 -8 ------- Run | Jun Mat Min Mat Min Exi Min Peak Influence 440 | . 289 90 440 359 . 35 Initial 133 | . . 40 35 133 . . Average 174 | . 96 43 263 218 . 17 Maximum Alert Level 2 | . 1 . 2 1 . . Low Security (%) 59 | 100 79 100 19 68 . 100 Level 1 37 | . 20 . 72 31 . . Level 2 3 | . . . 8 . . . Level 3 . | . . . . . . . Level 4 . | . . . . . . . Level 5 . | . . . . . . . High Security . | . . . . . . . Max Security . | . . . . . . . Squads Dispatched 4 | . 3 . . 1 . . Investigation 2 | . 1 . . 1 . . Extermination . | . . . . . . . Reinforcement 2 | . 2 . . . . . Assault . | . . . . . . . Garrison . | . . . . . . . Intercept . | . . . . . . . Searches Triggered . | . . . . . . . Construction Impeded . | . . . . . . . Haulers Reinforced . | . . . . . . . Active Scanning Responses . | . . . . . . . Cargo Convoy Interrupts . | . . . . . . . Stealth | -11 -10 -10 -9 -9 -9 -8 --------- Run | Jun Mat Min Mat Min Exi Min Distress Signals 7 | . 2 . 5 . . . Communications Jammed . | . . . . . . . Distress Signals . | . . . . . . . Times Spotted 66 | . 14 2 33 9 . 8 Peak Tracking Total 9 | . 6 2 5 4 9 5 Tactical Retreats 5 | . . . 4 1 . . Traps | -11 -10 -10 -9 -9 -9 -8 ------- Run | Jun Mat Min Mat Min Exi Min Traps Triggered 1 | . 1 . . . . . Indirectly . | . . . . . . . Trap Hack Attempts . | . . . . . . . Triggered . | . . . . . . . Disarmed . | . . . . . . . Reprogrammed . | . . . . . . . Reused . | . . . . . . . Traps Extracted . | . . . . . . . Installed . | . . . . . . . Triggered . | . . . . . . . Machines | -11 -10 -10 -9 -9 -9 -8 ---------- Run | Jun Mat Min Mat Min Exi Min Machines Disabled 2 | . 1 . . . 1 . Max in Single Turn 1 | . 1 . . . 1 . Machines Repaired . | . . . . . . . Machines Sabotaged . | . . . . . . . Overloaded Fab Kills . | . . . . . . . Hacking | -11 -10 -10 -9 -9 -9 -8 --------- Run | Jun Mat Min Mat Min Exi Min Machines Accessed 7 | . 1 . 4 1 1 . Terminals 5 | . 1 . 4 . . . Fabricators . | . . . . . . . Repair Stations . | . . . . . . . Recycling Units . | . . . . . . . Scanalyzers . | . . . . . . . Garrison Access . | . . . . . . . Total Hacks 17 | . 3 . 12 1 1 . Successful 10 | . 1 . 7 1 1 . Failed 7 | . 2 . 5 . . . Catastrophic 2 | . 1 . 1 . . . Database Lockouts . | . . . . . . . Manual 10 | . 3 . 6 . 1 . Terminals 15 | . 3 . 12 . . . Fabricators . | . . . . . . . Repair Stations . | . . . . . . . Recycling Units . | . . . . . . . Scanalyzers . | . . . . . . . Garrison Access . | . . . . . . . Terminal Hacks 6 | . . . 4 1 1 . Robot Analysis 1 | . . . 1 . . . Open Door 1 | . . . . 1 . . Alert Level 1 | . . . 1 . . . Locate Traps 1 | . . . 1 . . . Zone Layout 1 | . . . 1 . . . EX-Prototype ID Bank 1 | . . . . . 1 . Fabricator Hacks . | . . . . . . . Repair Station Hacks . | . . . . . . . Recycling Unit Hacks . | . . . . . . . Scanalyzer . | . . . . . . . Garrison Access Hacks . | . . . . . . . Unauthorized Hacks 4 | . 1 . 3 . . . Terminals 4 | . 1 . 3 . . . Botnet 4 | . 1 . 3 . . . Fabricators . | . . . . . . . Repair Stations . | . . . . . . . Recycling Units . | . . . . . . . Scanalyzers . | . . . . . . . Garrison Access . | . . . . . . . Data Cores Recovered 1 | . . . 1 . . . Used . | . . . . . . . Hacking Detections 5 | . 1 . 4 . . . Full Trace Events . | . . . . . . . Feedback Events . | . . . . . . . Feedback Blocked . | . . . . . . . Robot Schematics Acquired . | . . . . . . . Robots Built . | . . . . . . . Authchips . | . . . . . . . Time . | . . . . . . . Total Robot Build Rating . | . . . . . . . Part Schematics Acquired . | . . . . . . . Parts Built . | . . . . . . . Authchips . | . . . . . . . Time . | . . . . . . . Total Part Build Rating . | . . . . . . . Parts Repaired . | . . . . . . . Time . | . . . . . . . Parts Recycled . | . . . . . . . Recycled Matter . | . . . . . . . Retrieved Matter . | . . . . . . . Retrieved Components . | . . . . . . . Parts Scanalyzed . | . . . . . . . Part Schematics Acquired . | . . . . . . . Parts Damaged . | . . . . . . . Bothacking | -11 -10 -10 -9 -9 -9 -8 ------------ Run | Jun Mat Min Mat Min Exi Min Used RIF Installer . | . . . . . . . Robots Hacked . | . . . . . . . Non-combat . | . . . . . . . Combat . | . . . . . . . Robot Hacks Applied . | . . . . . . . Relay Couplers Released . | . . . . . . . Fabnet Peak Effective % . | . . . . . . . Robots Rewired . | . . . . . . . Allies Hacked . | . . . . . . . Hacks Repelled . | . . . . . . . Allies | -11 -10 -10 -9 -9 -9 -8 -------- Run | Jun Mat Min Mat Min Exi Min Total Allies . | . . . . . . . Largest Group . | . . . . . . . Highest-Rated Group . | . . . . . . . Highest-Rated Ally . | . . . . . . . Total Orders . | . . . . . . . Ally Attacks . | . . . . . . . Total Damage . | . . . . . . . Kills . | . . . . . . . Allies Corrupted . | . . . . . . . Allies Melted . | . . . . . . . Intel | -11 -10 -10 -9 -9 -9 -8 ------- Run | Jun Mat Min Mat Min Exi Min Robot Analysis Total 1 | . . . 1 . . . Derelict Logs Recovered 4 | . . 3 . 1 . . Drone Launches . | . . . . . . . Drone Recoveries . | . . . . . . . Exploration | -11 -10 -10 -9 -9 -9 -8 ------------- Run | Jun Mat Min Mat Min Exi Min Turns Passed 2778 | 94 404 381 864 614 374 47 Spaces Moved 1483 | 52 161 225 350 380 310 5 Core 3 | 3 . . . . . . Treads 847 | 49 161 225 211 196 . 5 Legs . | . . . . . . . Wheels 633 | . . . 139 184 310 . Hover . | . . . . . . . Flight . | . . . . . . . Fastest Speed 50 | 50 160 160 110 120 120 160 Average Speed 143 | 153 160 160 147 140 120 160 Slowest Speed 240 | 160 160 160 240 160 120 160 Overloaded Moves . | . . . . . . . Propulsion Burnouts . | . . . . . . . Robots Hopped . | . . . . . . . Cave-ins Triggered . | . . . . . . . Exploration Rate (%) 40 | 4 35 53 38 81 70 3 Regions Visited 6 Branch Regions 4 Pre-discovered Areas 2 | . . 1 . 1 . . Known Exits Taken . | . . . . . . . Unknown Exits Taken 6 | 1 1 1 1 1 1 . Scrap Searched 3 | . . 1 . 2 . . Spaces Dug . | . . . . . . . Terrain Destroyed 19 | . 2 . 10 7 . . Melee . | . . . . . . . Projectile 11 | . . . 10 1 . . AOE 8 | . 2 . . 6 . . Terrain Rammed . | . . . . . . . Walls Destroyed . | . . . . . . . Machines Disabled . | . . . . . . . Actions | -11 -10 -10 -9 -9 -9 -8 --------- Run | Jun Mat Min Mat Min Exi Min Total 1887 | 63 264 240 559 423 313 25 Wait 156 | . 56 3 82 12 . 3 Move 1477 | 51 160 224 349 379 309 5 Hop . | . . . . . . . Pick Up 34 | 6 8 2 13 3 2 . Fast Attach 15 | 6 1 1 4 2 . 1 Attach 6 | . . . 3 1 . 2 Detach 3 | . . . 2 . . 1 Swap 22 | . 4 4 11 2 . 1 Drop 37 | . 7 3 20 5 2 . Fire 132 | . 28 3 74 19 . 8 Melee 4 | . . . . . . 4 Ram 1 | . . . 1 . . . Kick . | . . . . . . . Crush . | . . . . . . . Escape Stasis . | . . . . . . . Rewire . | . . . . . . . Trap . | . . . . . . . Miscellaneous . | . . . . . . . Route ------- -11/Junkyard -10/Materials -10/Mines -9/Materials (discovered 2 exits: *Min / [*Sto]) -9/Mines (discovered 2 exits: [*Mat] / *Exi) -9/Exiles -8/Mines History --------- Turn | Location | Event 2 | -11/Junkyard | Discovered new exit (range 16) 95 | -11/Junkyard | Entered Materials 309 | -10/Materials | Build established: Mutant 422 | -10/Materials | Discovered new exit (range 14) 499 | -10/Materials | Entered Mines 501 | -10/Mines | Met a Derelict bent on vengeance 527 | -10/Mines | Learned Materials stockpile data 591 | -10/Mines | Learned location of Zion (-7) 613 | -10/Mines | A weapon hastily lodged in a ceiling crevice suddenly fell to the ground 806 | -10/Mines | Found a hidden stash of uninstalled traps 821 | -10/Mines | Learned 2 Materials zone layouts 863 | -10/Mines | Discovered new exit (range 7) 880 | -10/Mines | Entered Materials 880 | -9/Materials | Evolved 2 slots: Propulsion x1, Utility x1 991 | -9/Materials | Discovered new exit (range 11) 1599 | -9/Materials | Build established: Scavenger-Mutant 1732 | -9/Materials | Discovered new exit (range 8) 1744 | -9/Materials | Entered Mines 1894 | -9/Mines | Met a Derelict shopkeep closing up shop 1966 | -9/Mines | Learned Materials machine intel 2027 | -9/Mines | Joined a pair of Derelicts in attacking an 0b10 outpost 2128 | -9/Mines | Discovered new exit (range 8) 2129 | -9/Mines | Learned location of Storage (-9) 2352 | -9/Mines | Deemed a non-threat by the Exiles lab entrance 2352 | -9/Mines | Discovered new exit (range 5) 2358 | -9/Mines | Entered Exiles 2386 | -9/Exiles | Met 8R-AWN 2408 | -9/Exiles | Met EX-HEX 2440 | -9/Exiles | Met EX-BIN 2457 | -9/Exiles | Aligned with FarCom system 2458 | -9/Exiles | Given EX-Vault access code 2486 | -9/Exiles | Opened EX-Vault 2492 | -9/Exiles | Found Longsword +1 2517 | -9/Exiles | Warned to stay clear of 0b10 Research branches 2554 | -9/Exiles | Met EX-DEC 2697 | -9/Exiles | Attacked by the Exiles 2723 | -9/Exiles | Discovered new exit (range 10) 2732 | -9/Exiles | Left Exiles lab with Longsword +1 2732 | -9/Exiles | Entered Mines 2766 | -8/Mines | 1C-UTU came to Exiles' defense 2777 | -8/Mines | Core integrity fell below 50% 2779 | -8/Mines | Destroyed by 1C-UTU with 1C-UTU's Sword "Lootmaker" Last Messages --------------- 02745_ Acquired 54 matter. 02751_ Slug penetrates G-47 Trooper. 02751_ G-47 Trooper destroyed. 02756_ Cooling System destroyed. 02757_ Slug penetrates G-47 Trooper. 02757_ G-47 Trooper destroyed. 02762_ Acquired Gauss Rifle. 02765_ Acquired 54 matter. 02766_ 1C-UTU: "I came as fast as I could... Wait, it was you!" 02768_ 1C-UTU follow-up attacks with Prototype Slashing Weapon. 02770_ System corrupted: Matter fused (-8). 02771_ Hrd. Light Armor Plating destroyed. 02772_ Arm. Wheel destroyed. 02773_ Imp. Ion Engine destroyed. 02774_ 1C-UTU follow-up attacks with Prototype Slashing Weapon. 02774_ Lgt. Treads destroyed. 02776_ 1C-UTU follow-up attacks with Prototype Slashing Weapon. 02776_ Gauss Rifle destroyed. 02779_ Destroyed Prototype Device. 02779_ 1C-UTU follow-up attacks with Prototype Slashing Weapon. Map ----- +----------------------------------------------------+ | | | | | | | | | | | | | | | | | | | | | | | | | | | | | | | | | | | | | | | ??????????????????????????????? | | ??????????####????????????????? | | ?????##### #????????????????? | | ????## #????????????????? | | ???## #??????????????????? | | ???#= = #???????????????????? | | ???#/%@% #???????????????????? | | ???####l #???????????????????? | | ??????# ##???????????????????? | | ??????# #????????????????????? | | ??????# #????????????????????? | | ?????? $#????????????????????? | | ?????? #????????????????????? | | ?????? ###????????????????????? | | ?????? ???????????????????????? | | ?????? ???????????????????????? | | ?????? ???????????????????????? | | ?????? ???????????????????????? | | ?????? ???????????????????????? | | ?????? ???????????????????????? | | ?????? ???????????????????????? | | ??????????????????????????????? | | ??????????????????????????????? | | ??????????????????????????????? | | ??????????????????????????????? | | ??????????????????????????????? | | ??????????????????????????????? | | ??????????????????????????????? | | ??????????????????????????????? | | ??????????????????????????????? | | ??????????????????????????????? | +----------------------------------------------------+ Best States ------------- Heat Dissipation 50 Energy Generation 14 Energy Capacity 265 Matter Stores 300 Matter Capacity 300 Sight Range 16 Terrain Scan Density 10 Armor Coverage 150 Evasion (%) 40 Targeting Accuracy 5 Recoil Reduction 2 Item Schematics ----------------- None Robot Schematics ------------------ None Fabricated ------------ Nothing Alien Tech Used ----------------- None Achievements -------------- None Challenges ------------ None Game ------ Seed ProtonRefinerySheargun Manual? 0 Play Time 00:41:50 Cumulative 27.8 hours Start 2023.04.10 @ 20:36:19 End 2023.04.10 @ 21:16:56 Sessions 1 Manual Loads 0 Difficulty Rogue Special Mode None Game No. 24 Rogue 24 Adventurer 0 Explorer 0 Win Type - Total 0 Types 0/0/0/0/0/0/0/0/0 Lore% 33 Gallery% 33 Achievement% 28 Wizard Run 0 Options --------- ASCII 0 Keyboard 0 Movement Numpad Keybinds 0 Fullscreen 1 Font 14/SmallcapsGlow Map View 84x54 Tactical HUD 1 Map Filters NONE Filters NONE Steam 1 RUN: 2f09e890-bdd7-469b-8e98-1e42b3fb4a74